fUST/lending_fUST_20250717
["ID","MTS","AMOUNT","RATE_DAILY","PERIOD"]
[372741456,1752749451025,-500.0,0.00019178,2]
[372741458,1752749451034,-500.0,0.00019178,2]
[372741460,1752749451043,-5000.0,0.00019178,2]
[372741462,1752749451053,-889.78529278,0.00019178,2]
[372741464,1752749451064,-740.926524,0.00019178,2]
[372741466,1752749451073,-666.0,0.00019178,2]
[372741468,1752749451082,-649.95,0.00019187,2]
[372741470,1752749451091,-460.0,0.00019187,2]
[372741472,1752749451101,-460.0,0.00019187,2]
[372741474,1752749451110,-460.0,0.00019187,2]
[372741476,1752749451121,-718.62,0.00019187,2]
[372741478,1752749451130,-460.0,0.00019187,2]
[372741480,1752749451139,-460.0,0.00019187,2]
[372741482,1752749451149,-460.0,0.00019187,2]
[372741484,1752749451158,-460.0,0.00019187,2]
[372741486,1752749451167,-460.0,0.00019187,2]
[372741488,1752749451177,-460.0,0.00019187,2]
[372741490,1752749451187,-460.0,0.00019187,2]
[372741492,1752749451196,-390.65392384,0.00019187,2]
[372741494,1752749451206,-636.78,0.00019187,2]
[372741496,1752749451215,-1359.29,0.00019189,2]
[372741498,1752749451225,-581.75027151,0.00019192,2]
[372741500,1752749451234,-460.0,0.00019192,2]
[372741502,1752749451244,-460.0,0.00019192,2]
[372741504,1752749451254,-1336.9,0.00019192,2]
[372741506,1752749451264,-2365.42,0.00019192,2]
[372741508,1752749451273,-460.0,0.00019192,2]
[372741510,1752749451283,-859.99,0.00019192,2]
[372741512,1752749451292,-1691.93,0.00019192,2]
[372741526,1752749451409,-4571.51,0.00019192,2]
[372741528,1752749451420,-460.0,0.00019193,2]
[372741530,1752749451430,-333.35421646,0.00019193,2]
[372741532,1752749451439,-297.0,0.00019263,2]
[372741534,1752749451449,-300.0,0.00019263,2]
[372741536,1752749451459,-214.44804168,0.00019276,2]
[372741538,1752749451468,-12607.95677342,0.00019276,2]
[372741539,1752749451479,-13088.24121899,0.00019279,2]
[372741541,1752749451490,-839.15451687,0.00019285,2]
[372741543,1752749451501,-160.0,0.00019285,2]
[372741545,1752749451510,-160.0,0.00019285,2]
[372741547,1752749451521,-476.16111942,0.00019285,2]
[372741549,1752749451530,-525.67742785,0.00019285,2]
[372741551,1752749451541,-230.85589339,0.00019285,2]
[372741553,1752749451551,-160.0,0.00019285,2]
[372741555,1752749451560,-160.0,0.00019285,2]
[372741557,1752749451570,-215.59244943,0.00019285,2]
[372741559,1752749451579,-160.0,0.00019285,2]
[372741561,1752749451589,-160.0,0.00019285,2]
[372741563,1752749451598,-2664.58856842,0.00019289,2]
[372741565,1752749451607,-260.0,0.00019292,2]
[372741567,1752749451616,-160.0,0.00019302,2]
[372741569,1752749451625,-160.0,0.00019302,2]
[372741571,1752749451635,-160.0,0.00019302,2]
[372741573,1752749451645,-460.0,0.00019315,2]
[372741575,1752749451657,-460.0,0.00019315,2]
[372741577,1752749451667,-460.0,0.00019315,2]
[372741579,1752749451676,-1541.42,0.00019315,2]
[372741581,1752749451686,-460.0,0.00019315,2]
[372741584,1752749451695,-86629.29424444,0.00019329,2]
[372741611,1752749451949,-500.0,0.0001767,2]
[372741613,1752749451959,-500.0,0.0001767,2]
[372741615,1752749451968,-500.0,0.0001767,2]
[372741617,1752749451977,-4642.86,0.00017671,2]
[372741619,1752749451986,-504.86,0.00019077,2]
[372741621,1752749451995,-13370.70575556,0.00019329,2]
[372741623,1752749452005,-460.0,0.00019351,2]
[372741624,1752749452015,-460.0,0.00019351,2]
[372741626,1752749452024,-3125.9,0.00019351,2]
[372741629,1752749452034,-460.0,0.00019351,2]
[372741631,1752749452043,-671.88,0.00019351,2]
[372741633,1752749452052,-3141.42,0.00019351,2]
[372741635,1752749452062,-460.0,0.00019351,2]
[372741637,1752749452072,-2697.73,0.00019351,2]
[372741639,1752749452081,-460.0,0.00019351,2]
[372741641,1752749452091,-1049.54,0.00019351,2]
[372741643,1752749452100,-460.0,0.00019351,2]
[372741645,1752749452109,-460.0,0.00019351,2]
[372741647,1752749452118,-1349.2,0.00019351,2]
[372741649,1752749452128,-603.22,0.00019351,2]
[372741651,1752749452138,-460.0,0.00019351,2]
[372741653,1752749452147,-1680.0,0.00019357,2]
[372741655,1752749452157,-460.0,0.00019359,2]
[372741657,1752749452167,-460.0,0.00019359,2]
[372741659,1752749452177,-460.0,0.00019359,2]
[372741661,1752749452186,-460.0,0.00019359,2]
[372741663,1752749452196,-460.0,0.00019359,2]
[372741665,1752749452205,-830.6,0.00019359,2]
[372741667,1752749452215,-628.32,0.00019359,2]
[372741669,1752749452225,-521.73,0.00019359,2]
[372741671,1752749452234,-460.0,0.00019359,2]
[372741673,1752749452243,-984.02,0.00019359,2]
[372741675,1752749452253,-551.48,0.00019359,2]
[372741677,1752749452262,-460.0,0.00019359,2]
[372741680,1752749452272,-468.68,0.00019359,2]
[372741682,1752749452281,-460.0,0.00019359,2]
[372741684,1752749452291,-460.0,0.00019359,2]
[372741686,1752749452300,-719.87,0.00019359,2]
[372741687,1752749452311,-522.35729271,0.00019359,2]
[372741690,1752749452321,-460.0,0.00019359,2]
[372741692,1752749452330,-460.0,0.00019359,2]
[372741694,1752749452340,-726.87,0.00019359,2]
[372741696,1752749452350,-2228.36,0.00019361,2]
[372741698,1752749452359,-584.98,0.00019361,2]
[372741700,1752749452369,-460.0,0.00019361,2]
[372741702,1752749452379,-460.0,0.00019361,2]
[372741704,1752749452389,-460.0,0.00019361,2]
[372741706,1752749452399,-4089.05,0.00019361,2]
[372741708,1752749452409,-1256.82,0.00019361,2]
[372741710,1752749452419,-460.0,0.00019361,2]
[372741712,1752749452429,-460.0,0.00019361,2]
[372741714,1752749452438,-1451.74,0.00019361,2]
[372741716,1752749452447,-452.23,0.00019362,2]
[372741719,1752749452457,-505.05020048,0.00019373,2]
[372741720,1752749452467,-501.97751132,0.00019373,2]
[372741722,1752749452477,-500.0,0.00019373,2]
[372741724,1752749452486,-463.34381087,0.00019373,2]
[372741726,1752749452496,-500.0,0.00019373,2]
[372741728,1752749452506,-501.89293347,0.00019373,2]
[372741730,1752749452516,-500.0,0.00019373,2]
[372741732,1752749452526,-500.0,0.00019373,2]
[372741734,1752749452535,-500.0,0.00019373,2]
[372741737,1752749452546,-500.0,0.00019373,2]
[372741739,1752749452555,-500.0,0.00019373,2]
[372741741,1752749452569,-500.0,0.00019373,2]
[372741743,1752749452578,-500.0,0.00019373,2]
[372741745,1752749452589,-500.0,0.00019373,2]
[372741747,1752749452599,-500.0,0.00019373,2]
[372741749,1752749452608,-209.02065604,0.00019373,2]
[372741751,1752749452618,-500.0,0.00019373,2]
[372741753,1752749452627,-500.0,0.00019373,2]
[372741755,1752749452637,-500.0,0.00019373,2]
[372741757,1752749452650,-500.0,0.00019373,2]
[372741759,1752749452660,-500.0,0.00019373,2]
[372741761,1752749452670,-500.0,0.00019373,2]
[372741763,1752749452680,-500.0,0.00019373,2]
[372741765,1752749452690,-500.0,0.00019373,2]
[372741767,1752749452701,-500.0,0.00019373,2]
[372741769,1752749452711,-500.0,0.00019373,2]
[372741771,1752749452720,-798.29602581,0.00019416,2]
[372741773,1752749452734,-2000.0,0.00019416,2]
[372741775,1752749452747,-2000.0,0.00019416,2]
[372741777,1752749452756,-649.95,0.00019461,2]
[372741779,1752749452766,-460.0,0.00019461,2]
[372741781,1752749452776,-460.0,0.00019461,2]
[372741783,1752749452785,-460.0,0.00019461,2]
[372741785,1752749452794,-718.62,0.00019461,2]
[372741787,1752749452804,-460.0,0.00019461,2]
[372741789,1752749452818,-460.0,0.00019461,2]
[372741792,1752749452828,-460.0,0.00019461,2]
[372741793,1752749452838,-309.42311904,0.00019461,2]
[372741796,1752749452847,-460.0,0.00019461,2]
[372741798,1752749452856,-460.0,0.00019461,2]
[372741799,1752749452866,-460.0,0.00019461,2]
[372741802,1752749452875,-636.78,0.00019461,2]
[372741804,1752749452884,-1359.29,0.00019463,2]
[372741806,1752749452894,-460.0,0.00019466,2]
[372741808,1752749452904,-1336.9,0.00019466,2]
[372741810,1752749452913,-2365.42,0.00019466,2]
[372741812,1752749452922,-460.0,0.00019466,2]
[372741813,1752749452931,-859.99,0.00019466,2]
[372741815,1752749452940,-1691.93,0.00019466,2]
[372741818,1752749452950,-4571.51,0.00019466,2]
[372741820,1752749452959,-460.0,0.00019467,2]
[372741822,1752749452968,-2519.59076333,0.00019473,2]
[372741824,1752749452978,-13088.24121899,0.00019555,2]
[372741826,1752749452987,-460.0,0.00019589,2]
[372741828,1752749452996,-460.0,0.00019589,2]
[372741829,1752749453006,-1541.42,0.00019589,2]
[372741832,1752749453015,-460.0,0.00019589,2]
[372741833,1752749453027,-151.0,0.000196,2]
[372741835,1752749453037,-500.0,0.000196,2]
[372741837,1752749453046,-460.0,0.00019625,2]
[372741839,1752749453056,-3125.9,0.00019625,2]
[372741841,1752749453067,-460.0,0.00019625,2]
[372741843,1752749453076,-671.88,0.00019625,2]
[372741845,1752749453086,-3141.42,0.00019625,2]
[372741847,1752749453095,-460.0,0.00019625,2]
[372741849,1752749453104,-2697.73,0.00019625,2]
[372741851,1752749453113,-460.0,0.00019625,2]
[372741853,1752749453122,-1049.54,0.00019625,2]
[372741855,1752749453131,-460.0,0.00019625,2]
[372741857,1752749453141,-460.0,0.00019625,2]
[372741859,1752749453151,-1349.2,0.00019625,2]
[372741861,1752749453161,-603.22,0.00019625,2]
[372741863,1752749453170,-460.0,0.00019625,2]
[372741865,1752749453179,-460.0,0.00019633,2]
[372741867,1752749453189,-460.0,0.00019633,2]
[372741869,1752749453199,-460.0,0.00019633,2]
[372741871,1752749453208,-460.0,0.00019633,2]
[372741873,1752749453218,-460.0,0.00019633,2]
[372741875,1752749453227,-830.6,0.00019633,2]
[372741878,1752749453239,-628.32,0.00019633,2]
[372741880,1752749453248,-521.73,0.00019633,2]
[372741882,1752749453258,-460.0,0.00019633,2]
[372741884,1752749453267,-984.02,0.00019633,2]
[372741886,1752749453277,-551.48,0.00019633,2]
[372741888,1752749453286,-460.0,0.00019633,2]
[372741890,1752749453295,-468.68,0.00019633,2]
[372741892,1752749453307,-460.0,0.00019633,2]
[372741894,1752749453319,-460.0,0.00019633,2]
[372741896,1752749453328,-719.87,0.00019633,2]
[372741898,1752749453338,-460.0,0.00019633,2]
[372741900,1752749453348,-460.0,0.00019633,2]
[372741902,1752749453357,-726.87,0.00019633,2]
[372741904,1752749453367,-2228.36,0.00019635,2]
[372741906,1752749453376,-584.98,0.00019635,2]
[372741908,1752749453385,-460.0,0.00019635,2]
[372741910,1752749453395,-460.0,0.00019635,2]
[372741913,1752749453404,-151.0,0.00019635,2]
[372741914,1752749453414,-4089.05,0.00019635,2]
[372741916,1752749453423,-151.0,0.00019635,2]
[372741919,1752749453432,-1256.82,0.00019635,2]
[372741921,1752749453442,-460.0,0.00019635,2]
[372741923,1752749453452,-460.0,0.00019635,2]
[372741924,1752749453461,-1451.74,0.00019635,2]
[372741926,1752749453470,-151.0,0.00019656,2]
[372741928,1752749453480,-207.4,0.00019656,2]
[372741930,1752749453489,-151.0,0.00019656,2]
[372741932,1752749453498,-151.0,0.00019656,2]
[372741934,1752749453508,-437.78817027,0.00019656,2]
[372741936,1752749453517,-151.0,0.00019656,2]
[372741938,1752749453526,-151.0,0.00019656,2]
[372741940,1752749453535,-151.0,0.00019656,2]
[372741942,1752749453545,-151.0,0.00019656,2]
[372741944,1752749453554,-151.0,0.00019656,2]
[372741946,1752749453566,-151.0,0.00019656,2]
[372741948,1752749453575,-151.0,0.00019656,2]
[372741950,1752749453584,-151.0,0.00019656,2]
[372741952,1752749453594,-151.0,0.00019656,2]
[372741954,1752749453603,-151.0,0.00019656,2]
[372741957,1752749453613,-151.0,0.00019656,2]
[372741959,1752749453622,-151.0,0.00019656,2]
[372741972,1752749453743,-25000.0,0.00019656,2]
[372741974,1752749453753,-151.0,0.00019656,2]
[372741976,1752749453762,-151.0,0.00019656,2]
[372741978,1752749453771,-151.0,0.00019656,2]
[372741980,1752749453782,-151.0,0.00019656,2]
[372741982,1752749453791,-151.0,0.00019656,2]
[372741984,1752749453801,-151.0,0.00019656,2]
[372741986,1752749453811,-151.0,0.00019656,2]
[372741988,1752749453820,-151.0,0.00019656,2]
[372741990,1752749453829,-151.0,0.00019656,2]
[372741992,1752749453839,-151.0,0.00019656,2]
[372741994,1752749453849,-151.0,0.00019656,2]
[372741996,1752749453859,-151.0,0.00019656,2]
[372741998,1752749453868,-151.0,0.00019656,2]
[372742000,1752749453878,-151.0,0.00019656,2]
[372742002,1752749453888,-151.0,0.00019656,2]
[372742004,1752749453897,-159.14388846,0.00019656,2]
[372742006,1752749453907,-151.0,0.00019656,2]
[372742008,1752749453916,-151.0,0.00019656,2]
[372742010,1752749453925,-151.0,0.00019656,2]
[372742012,1752749453937,-649.95,0.00019735,2]
[372742015,1752749453946,-460.0,0.00019735,2]
[372742017,1752749453955,-460.0,0.00019735,2]
[372742019,1752749453967,-718.62,0.00019735,2]
[372742021,1752749453977,-460.0,0.00019735,2]
[372742023,1752749453986,-460.0,0.00019735,2]
[372742025,1752749453996,-460.0,0.00019735,2]
[372742027,1752749454006,-460.0,0.00019735,2]
[372742029,1752749454015,-460.0,0.00019735,2]
[372742031,1752749454024,-636.78,0.00019735,2]
[372742033,1752749454033,-1359.29,0.00019737,2]
[372742035,1752749454042,-460.0,0.0001974,2]
[372742037,1752749454051,-1336.9,0.0001974,2]
[372742039,1752749454060,-2365.42,0.0001974,2]
[372742040,1752749454070,-460.0,0.0001974,2]
[372742043,1752749454080,-859.99,0.0001974,2]
[372742045,1752749454090,-1691.93,0.0001974,2]
[372742047,1752749454099,-4571.51,0.0001974,2]
[372742049,1752749454109,-285.7777226,0.00019741,2]
[372742051,1752749454119,-532.936075,0.00019793,2]
[372742053,1752749454129,-179.9640072,0.00019798,2]
[372742055,1752749454138,-151.0,0.000198,2]
[372742057,1752749454148,-777.647444,0.00019831,2]
[372742059,1752749454157,-777.647444,0.00019831,2]
[372742061,1752749454168,-161.343582,0.00019831,2]
[372742063,1752749454177,-13088.24121899,0.00019831,2]
[372742065,1752749454187,-360.0,0.0001984,2]
[372742067,1752749454196,-333.8,0.00019846,3]
[372742069,1752749454206,-460.0,0.00019863,2]
[372742071,1752749454215,-460.0,0.00019863,2]
[372742073,1752749454225,-1541.42,0.00019863,2]
[372742075,1752749454235,-492.73,0.00019863,2]
[372742077,1752749454244,-460.0,0.00019899,2]
[372742079,1752749454254,-3125.9,0.00019899,2]
[372742081,1752749454263,-460.0,0.00019899,2]
[372742083,1752749454272,-671.88,0.00019899,2]
[372742085,1752749454282,-3141.42,0.00019899,2]
[372742087,1752749454291,-460.0,0.00019899,2]
[372742089,1752749454301,-2697.73,0.00019899,2]
[372742091,1752749454312,-460.0,0.00019899,2]
[372742093,1752749454321,-1049.54,0.00019899,2]
[372742095,1752749454330,-460.0,0.00019899,2]
[372742096,1752749454340,-426.00398783,0.00019899,2]
[372742097,1752749454352,-1349.2,0.00019899,2]
[372742098,1752749454362,-603.22,0.00019899,2]
[372742099,1752749454372,-460.0,0.00019899,2]
[372742100,1752749454382,-533.45216914,0.00019905,2]
[372742101,1752749454391,-521.52,0.00019907,2]
[372742102,1752749454401,-460.0,0.00019907,2]
[372742103,1752749454411,-460.0,0.00019907,2]
[372742104,1752749454421,-460.0,0.00019907,2]
[372742105,1752749454430,-460.0,0.00019907,2]
[372742106,1752749454440,-830.6,0.00019907,2]
[372742108,1752749454449,-628.32,0.00019907,2]
[372742109,1752749454459,-521.73,0.00019907,2]
[372742110,1752749454468,-460.0,0.00019907,2]
[372742112,1752749454478,-984.02,0.00019907,2]
[372742114,1752749454487,-551.48,0.00019907,2]
[372742116,1752749454497,-460.0,0.00019907,2]
[372742118,1752749454506,-468.68,0.00019907,2]
[372742120,1752749454516,-460.0,0.00019907,2]
[372742122,1752749454525,-460.0,0.00019907,2]
[372742124,1752749454535,-719.87,0.00019907,2]
[372742126,1752749454544,-460.0,0.00019907,2]
[372742128,1752749454553,-460.0,0.00019907,2]
[372742130,1752749454564,-726.87,0.00019907,2]
[372742132,1752749454574,-2228.36,0.00019909,2]
[372742134,1752749454583,-584.98,0.00019909,2]
[372742136,1752749454593,-460.0,0.00019909,2]
[372742138,1752749454603,-460.0,0.00019909,2]
[372742140,1752749454612,-4089.05,0.00019909,2]
[372742142,1752749454622,-460.0,0.00019909,2]
[372742144,1752749454632,-1256.82,0.00019909,2]
[372742146,1752749454642,-460.0,0.00019909,2]
[372742148,1752749454652,-1451.74,0.00019909,2]
[372742150,1752749454664,-1000.0,0.00019921,2]
[372742152,1752749454673,-1000.0,0.00019921,2]
[372742154,1752749454683,-1000.0,0.00019921,2]
[372742156,1752749454693,-821.62587952,0.00019921,2]
[372742158,1752749454701,-1000.0,0.00019921,2]
[372742160,1752749454711,-1000.0,0.00019921,2]
[372742162,1752749454720,-1000.0,0.00019921,2]
[372742164,1752749454729,-1000.0,0.00019921,2]
[372742166,1752749454739,-1000.0,0.00019921,2]
[372742168,1752749454749,-1000.0,0.00019921,2]
[372742170,1752749454758,-1000.0,0.00019921,2]
[372742172,1752749454767,-540.13657752,0.00019921,2]
[372742174,1752749454777,-1000.0,0.00019921,2]
[372742176,1752749454786,-1000.0,0.00019921,2]
[372742178,1752749454796,-610.68261259,0.00019926,2]
[372742180,1752749454805,-2500.0,0.00019964,2]
[372742182,1752749454816,-1500.0,0.00019964,2]
[372742184,1752749454827,-408.35712154,0.0002,5]
[372742186,1752749454835,-300.2710838,0.0002,2]
[372742188,1752749454845,-649.95,0.00020009,2]
[372742190,1752749454854,-539.16516269,0.00020009,2]
[372742192,1752749454863,-718.62,0.00020009,2]
[372742194,1752749454873,-460.0,0.00020009,2]
[372742196,1752749454883,-460.0,0.00020009,2]
[372742198,1752749454892,-460.0,0.00020009,2]
[372742200,1752749454902,-460.0,0.00020009,2]
[372742202,1752749454912,-247.2,0.00020009,2]
[372742204,1752749454921,-636.78,0.00020009,2]
[372742206,1752749454930,-1359.29,0.00020011,2]
[372742208,1752749454939,-460.0,0.00020014,2]
[372742210,1752749454948,-1336.9,0.00020014,2]
[372742212,1752749454958,-2365.42,0.00020014,2]
[372742213,1752749454967,-460.0,0.00020014,2]
[372742215,1752749454976,-859.99,0.00020014,2]
[372742217,1752749454986,-1691.93,0.00020014,2]
[372742220,1752749454996,-4571.51,0.00020014,2]
[372742222,1752749455006,-2519.59076333,0.00020073,2]
[372742224,1752749455015,-39887.82694021,0.00020082,2]
[372742226,1752749455025,-11017.15526036,0.00020082,2]
[372742228,1752749455034,-151.0,0.00020082,2]
[372742230,1752749455044,-151.0,0.00020082,2]
[372742232,1752749455053,-151.0,0.000201,4]
[372742234,1752749455064,-13088.24121899,0.00020107,2]
[372742236,1752749455073,-151.0,0.00020107,2]
[372742237,1752749455082,-546.98,0.00020137,2]
[372742240,1752749455093,-460.0,0.00020137,2]
[372742242,1752749455102,-1541.42,0.00020137,2]
[372742243,1752749455111,-4000.0,0.00020162,4]
[372742245,1752749455121,-460.0,0.00020173,2]
[372742247,1752749455130,-3125.9,0.00020173,2]
[372742249,1752749455140,-460.0,0.00020173,2]
[372742251,1752749455150,-671.88,0.00020173,2]
[372742253,1752749455160,-3141.42,0.00020173,2]
[372742255,1752749455169,-460.0,0.00020173,2]
[372742257,1752749455179,-2697.73,0.00020173,2]
[372742259,1752749455188,-460.0,0.00020173,2]
[372742261,1752749455198,-1049.54,0.00020173,2]
[372742263,1752749455208,-460.0,0.00020173,2]
[372742265,1752749455218,-1349.2,0.00020173,2]
[372742267,1752749455228,-603.22,0.00020173,2]
[372742268,1752749455237,-460.0,0.00020173,2]
[372742270,1752749455247,-460.0,0.00020181,2]
[372742272,1752749455257,-460.0,0.00020181,2]
[372742274,1752749455266,-460.0,0.00020181,2]
[372742276,1752749455277,-830.6,0.00020181,2]
[372742278,1752749455287,-628.32,0.00020181,2]
[372742280,1752749455296,-521.73,0.00020181,2]
[372742282,1752749455307,-984.02,0.00020181,2]
[372742284,1752749455317,-551.48,0.00020181,2]
[372742286,1752749455327,-460.0,0.00020181,2]
[372742288,1752749455337,-468.68,0.00020181,2]
[372742290,1752749455348,-460.0,0.00020181,2]
[372742292,1752749455358,-460.0,0.00020181,2]
[372742294,1752749455367,-719.87,0.00020181,2]
[372742296,1752749455377,-460.0,0.00020181,2]
[372742298,1752749455387,-460.0,0.00020181,2]
[372742300,1752749455398,-726.87,0.00020181,2]
[372742302,1752749455407,-2228.36,0.00020183,2]
[372742304,1752749455416,-151.0,0.00020183,2]
[372742305,1752749455426,-584.98,0.00020183,2]
[372742307,1752749455435,-460.0,0.00020183,2]
[372742309,1752749455445,-460.0,0.00020183,2]
[372742311,1752749455454,-4089.05,0.00020183,2]
[372742313,1752749455464,-460.0,0.00020183,2]
[372742315,1752749455473,-1256.82,0.00020183,2]
[372742317,1752749455483,-216.29878478,0.00020183,2]
[372742319,1752749455492,-1451.74,0.00020183,2]
[372742321,1752749455502,-739.026959,0.00020187,2]
[372742323,1752749455513,-649.95,0.00020283,2]
[372742325,1752749455522,-718.62,0.00020283,2]
[372742327,1752749455531,-460.0,0.00020283,2]
[372742329,1752749455541,-460.0,0.00020283,2]
[372742331,1752749455550,-460.0,0.00020283,2]
[372742333,1752749455560,-636.78,0.00020283,2]
[372742335,1752749455570,-1359.29,0.00020285,2]
[372742337,1752749455579,-460.0,0.00020288,2]
[372742339,1752749455588,-1336.9,0.00020288,2]
[372742341,1752749455598,-2365.42,0.00020288,2]
[372742343,1752749455607,-460.0,0.00020288,2]
[372742345,1752749455618,-859.99,0.00020288,2]
[372742347,1752749455628,-1691.93,0.00020288,2]
[372742349,1752749455637,-4571.51,0.00020288,2]
[372742351,1752749455647,-333.8,0.00020296,3]
[372742353,1752749455661,-151.0,0.00020313,2]
[372742355,1752749455670,-151.0,0.00020313,2]
[372742357,1752749455680,-169.508446,0.00020313,2]
[372742359,1752749455689,-169.508446,0.00020313,2]
[372742361,1752749455700,-151.0,0.0002035,2]
[372742363,1752749455710,-151.0,0.0002035,2]
[372742365,1752749455719,-13088.24121899,0.00020383,3]
[372742367,1752749455728,-218.529304,0.00020383,2]
[372742368,1752749455740,-218.529304,0.00020383,2]
[372742370,1752749455750,-460.0,0.00020388,2]
[372742372,1752749455759,-476.16111942,0.000204,3]
[372742374,1752749455769,-160.0,0.000204,3]
[372742376,1752749455777,-12607.95677342,0.000204,3]
[372742378,1752749455787,-214.44804168,0.000204,3]
[372742380,1752749455796,-460.0,0.00020411,2]
[372742382,1752749455805,-1541.42,0.00020411,2]
[372742384,1752749455815,-800.0,0.00020413,2]
[372742386,1752749455824,-151.0,0.00020436,2]
[372742388,1752749455834,-378.03175,0.00020436,2]
[372742390,1752749455843,-378.03175,0.00020436,2]
[372742392,1752749455852,-163.047601,0.00020436,2]
[372742394,1752749455863,-163.047601,0.00020436,2]
[372742396,1752749455872,-460.00191781,0.00020447,2]
[372742398,1752749455882,-3125.9,0.00020447,2]
[372742400,1752749455891,-449.08235751,0.00020447,2]
[372742401,1752749455902,-671.88,0.00020447,2]
[372742404,1752749455912,-3141.42,0.00020447,2]
[372742405,1752749455923,-460.0,0.00020447,2]
[372742408,1752749455932,-2697.73,0.00020447,2]
[372742420,1752749456042,-460.0,0.00020447,2]
[372742422,1752749456054,-1049.54,0.00020447,2]
[372742424,1752749456065,-314.90950628,0.00020447,2]
[372742426,1752749456075,-1349.2,0.00020447,2]
[372742428,1752749456085,-603.22,0.00020447,2]
[372742430,1752749456095,-460.0,0.00020447,2]
[372742432,1752749456104,-554.26,0.00020455,2]
[372742434,1752749456114,-490.68,0.00020455,2]
[372742436,1752749456125,-342.06152639,0.00020455,2]
[372742438,1752749456134,-830.6,0.00020455,2]
[372742440,1752749456144,-628.32,0.00020455,2]
[372742442,1752749456154,-521.73,0.00020455,2]
[372742444,1752749456163,-984.02,0.00020455,2]
[372742446,1752749456173,-551.48,0.00020455,2]
[372742448,1752749456183,-460.0,0.00020455,2]
[372742450,1752749456193,-468.68,0.00020455,2]
[372742452,1752749456202,-460.0,0.00020455,2]
[372742454,1752749456212,-460.0,0.00020455,2]
[372742456,1752749456222,-719.87,0.00020455,2]
[372742458,1752749456231,-460.0,0.00020455,2]
[372742460,1752749456241,-362.1091208,0.00020455,2]
[372742462,1752749456250,-726.87,0.00020455,2]
[372742464,1752749456260,-2228.36,0.00020457,2]
[372742466,1752749456270,-584.98,0.00020457,2]
[372742468,1752749456279,-460.0,0.00020457,2]
[372742470,1752749456289,-460.0,0.00020457,2]
[372742472,1752749456299,-4089.05,0.00020457,2]
[372742474,1752749456309,-460.0,0.00020457,2]
[372742476,1752749456320,-1256.82,0.00020457,2]
[372742478,1752749456330,-1451.74,0.00020457,2]
[372742480,1752749456339,-2966.84311176,0.00020462,2]
[372742482,1752749456350,-1500.0,0.00020468,2]
[372742484,1752749456359,-1500.0,0.00020468,2]
[372742486,1752749456369,-163.56368296,0.00020468,2]
[372742488,1752749456378,-1113.72738664,0.00020468,2]
[372742490,1752749456388,-1017.73282195,0.00020468,2]
[372742492,1752749456398,-1500.0,0.00020468,2]
[372742494,1752749456408,-1500.0,0.00020468,2]
[372742496,1752749456418,-1500.0,0.00020468,2]
[372742498,1752749456427,-500.0,0.00020468,2]
[372742500,1752749456437,-1500.0,0.00020468,2]